[Event "ESP-ch Teams Honor 2024"]
[Site "Melilla"]
[Date "2024.10.13"]
[Round "2.19"]
[White "Pranav, V."]
[Black "Murzin, Volodar"]
[Result "1/2-1/2"]
[ECO "B90"]
[WhiteElo "2609"]
[BlackElo "2648"]
[Annotator "TA"]
[PlyCount "74"]
[EventDate "2024.10.11"]
[EventType "team-tourn"]
[EventCountry "ESP"]
[SourceTitle "playchess.com"]
[Source "ChessBase"]
[SourceQuality "1"]
[WhiteTeam "Benalmadena"]
[BlackTeam "Extremadura"]
[TimeControl "5400+30"]

{[%evp 15,74,0,0,-40,-42,-41,-43,-40,-54,-38,0,-21,-37,-20,-26,-39,0,-2,-8,-6,-7,-8,0,-5,-1,-7,0,0,0,-16,2,0,0,0,20,11,26,26,48,16,23,5,5,0,0,0,0,0,0,0,0,0,0,-17,0,0,0,0,0,0,0]} 1. e4 {[%emt 0:00:23]} c5 {[%emt 0:00:06]} 2. Nf3 {[%emt 0:00:08]} d6 {[%emt 0:00:04]} 3. d4 {[%emt 0:00:09]} cxd4 {[%emt 0:00:02]} 4. Nxd4 {[%emt 0:00:10]} Nf6 {[%emt 0:00:02]} 5. Nc3 {[%emt 0:00:09]} a6 {[%emt 0:00:06]} 6. Bc4 {[%emt 0:00:12]} e6 {[%emt 0:01:26]} 7. Bb3 {[%emt 0:01:09]} Nbd7 {[%emt 0:05:17]} 8. Qe2 {[%emt 0:06:40]} Nc5 {[%emt 0:04:01]} 9. f3 {[%emt 0:01:59]} e5 {[%emt 0:12:05]} 10. Nf5 {[%emt 0:10:54] [#]} d5 $1 {[%emt 0:00:41]} 11. O-O {[%emt 0:05:14] Black is slightly better.} ({Don't blunder} 11. exd5 $2 Bxf5 12. Bg5 Bd6 $19) 11... d4 {[%emt 0:09:39]} 12. Nd1 {[%emt 0:05:52]} Be6 {[%emt 0:12:18]} 13. Nf2 {[%emt 0:05:56]} g6 {[%emt 0:08:17] White must now prevent ...Bxb3.} 14. Ng3 {[%emt 0:10:23]} Bg7 {[%emt 0:05:33]} 15. f4 {[%emt 0:17:22]} exf4 {[%emt 0:03:49]} (15... Nxb3 {simplifies} 16. axb3 O-O 17. Nd3 exf4 18. Bxf4 Rc8) 16. Nf5 {[%emt 0:01:26]} gxf5 {[%emt 0:04:50]} 17. exf5 {[%emt 0:00:07] [#]} f3 $1 {[%emt 0:09:41]} 18. gxf3 {[%emt 0:00:49]} Nxb3 {[%emt 0:00:28]} 19. axb3 {[%emt 0:00:19]} Qd5 {[%emt 0:00:19]} 20. fxe6 {[%emt 0:00:11]} Qxe6 {[%emt 0:03:24]} 21. Qd3 {[%emt 0:08:13]} Nd7 {[%emt 0:01:36][%cal Bf6d7,Bd7c5,Bc5e6][%mdl 32]} 22. Bf4 {[%emt 0:02:11] Hoping for Rfe1.} Nc5 {[%emt 0:02:31]} 23. Qc4 {[%emt 0:00:03]} Qxc4 {[%emt 0:03:51]} 24. bxc4 {[%emt 0:00:01]} Ne6 {[%emt 0:00:23]} 25. Nd3 {[%emt 0:02:21]} Rc8 {[%emt 0:04:30]} 26. b3 {[%emt 0:00:36]} O-O {[%emt 0:00:11]} 27. Bd6 {[%emt 0:06:28]} Rfd8 {[%emt 0:00:47]} 28. Bb4 {[%emt 0:00:27]} Bf8 {[%emt 0:01:43] The position is equal.} 29. Ba5 {[%emt 0:00:24]} Re8 {[%emt 0:00:19]} 30. Rf2 {[%emt 0:03:50]} f6 {[%emt 0:00:50]} 31. Re1 {[%emt 0:01:04]} Kf7 {[%emt 0:00:56]} 32. Rfe2 {[%emt 0:04:34]} b5 {[%emt 0:00:29]} 33. cxb5 {[%emt 0:00:57]} axb5 {[%emt 0:00:01]} 34. Kf2 {[%emt 0:01:58]} Bh6 {[%emt 0:05:18]} 35. Bd2 {[%emt 0:00:02] Against Be3+} Bf8 {[%emt 0:00:26]} 36. Bb4 {[%emt 0:02:24]} Bh6 {[%emt 0:00:32]} 37. Bd2 {[%emt 0:00:16] Dodges Be3+} Bf8 {[%emt 0:00:07] Weighted Error Value: White=0.06 (flawless) /Black=0.06 (flawless) .  Inaccurate:     	White=1     	Black=2      OK:         	White=13    	Black=14     Best:        	White=1     	Black=1} 1/2-1/2

[Event "ESP-ch Teams Honor 2024"]
[Site "Melilla"]
[Date "2024.10.13"]
[Round "2.20"]
[White "Santos Latasa, Jaime"]
[Black "Ter-Sahakyan, Samvel"]
[Result "1-0"]
[ECO "E32"]
[WhiteElo "2621"]
[BlackElo "2609"]
[Annotator "TA"]
[PlyCount "99"]
[EventDate "2024.10.11"]
[EventType "team-tourn"]
[EventCountry "ESP"]
[SourceTitle "playchess.com"]
[Source "ChessBase"]
[SourceQuality "1"]
[WhiteTeam "Extremadura"]
[BlackTeam "Benalmadena"]
[TimeControl "5400+30"]

{[%evp 12,99,6,0,20,10,13,0,20,8,14,12,11,14,31,12,45,42,35,39,65,69,62,67,77,78,100,76,73,75,106,100,108,108,102,114,131,95,120,126,135,119,107,110,166,166,202,139,135,138,136,102,107,107,137,146,115,39,39,42,27,4,24,0,0,0,0,0,4,13,290,272,315,283,308,316,318,307,303,302,352,314,707,664,922,922,891,870,1380,1268]} 1. d4 {[%emt 0:00:03]} e6 {[%emt 0:03:10]} 2. c4 {[%emt 0:01:22]} Nf6 {[%emt 0:00:27]} 3. Nc3 {[%emt 0:00:53]} Bb4 {[%emt 0:01:06]} 4. Qc2 {[%emt 0:01:56]} O-O {[%emt 0:05:09]} 5. a3 {[%emt 0:02:02]} Bxc3+ {[%emt 0:00:22]} 6. Qxc3 {[%emt 0:00:05]} d5 {[%emt 0:02:02]} 7. Bg5 {[%emt 0:01:25]} h6 {[%emt 0:03:18][%cal Bh7h6,Bh6h5][%mdl 32]} 8. Bxf6 {[%emt 0:00:57]} Qxf6 {[%emt 0:00:05]} 9. Nf3 {[%emt 0:00:11]} c6 {[%emt 0:05:04] The position is equal.} 10. h4 {[%emt 0:03:55]} Nd7 {[%emt 0:14:01]} 11. g4 {[%emt 0:03:23][%cal Bg2g4,Bg4g5][%mdl 32]} Qe7 {[%emt 0:00:26]} 12. g5 {[%emt 0:00:59]} h5 {[%emt 0:00:30]} 13. Bg2 {[%emt 0:04:06]} b6 {[%emt 0:06:07]} 14. cxd5 {[%emt 0:06:20]} cxd5 {[%emt 0:00:21]} 15. Qb4 $36 {[%emt 0:02:45][%mdl 2048] White has good play.} Re8 {[%emt 0:06:06]} 16. Qxe7 {[%emt 0:02:23]} Rxe7 {[%emt 0:00:15]} 17. Rc1 {[%emt 0:00:19][%cal Ba1c1,Bc1c3,Bc3c7][%mdl 32]} Ba6 {[%emt 0:03:40]} 18. Kd2 {[%emt 0:02:35]} g6 {[%emt 0:09:00]} 19. e3 {[%emt 0:07:21]} Kf8 {[%emt 0:02:03]} 20. Rc3 {[%emt 0:04:52]} Ke8 {[%emt 0:12:38]} 21. Bf1 {[%emt 0:06:40]} Bxf1 {[%emt 0:01:04]} 22. Rxf1 {[%emt 0:00:07]} e5 {[%emt 0:00:39]} 23. Rfc1 {[%emt 0:00:54] [#] White threatens Rc8+ and mate.} Rd8 {[%emt 0:01:06]} 24. Rc7 {[%emt 0:02:55]} e4 {[%emt 0:04:44]} 25. Ng1 {[%emt 0:00:52] White is much more active. The black rooks are passive.} Nf8 {[%emt 0:00:50]} 26. f3 {[%emt 0:04:42]} Rdd7 {[%emt 0:11:58]} 27. R7c6 {[%emt 0:05:47]} Rd8 {[%emt 0:01:49]} (27... Ne6 $16 {might work better.}) 28. b4 $18 {[%emt 0:04:18]} Nd7 {[%emt 0:00:45]} 29. a4 {[%emt 0:02:13]} Nb8 {[%emt 0:01:31]} 30. R6c3 {[%emt 0:02:04]} Na6 {[%emt 0:00:57]} 31. Rb1 {[%emt 0:04:50]} Nc7 {[%emt 0:03:23]} 32. b5 {[%emt 0:00:47]} Kd7 {[%emt 0:00:21]} 33. Rbc1 {[%emt 0:00:28]} Ne8 {[%emt 0:00:28]} 34. fxe4 {[%emt 0:00:09]} ({White should play} 34. Ne2 $16) 34... Rxe4 $14 {[%emt 0:00:56][%cal Oe8d6]} 35. Nf3 {[%emt 0:00:28] [#] Black must now prevent Ne5+.} Nd6 $1 {[%emt 0:00:15]} 36. Rc7+ {[%emt 0:01:34]} (36. Ne5+ $5 Ke8 37. Rc7 Rxh4 38. R1c6 $11 (38. Rxa7 Rh2+ 39. Kd3 h4 $11)) 36... Ke8 $1 {[%emt 0:00:22]} 37. Rxa7 {[%emt 0:01:54] Ne5 is the strong threat.} Nc4+ {[%emt 0:00:09]} 38. Rxc4 {[%emt 0:00:22]} dxc4 $11 {[%emt 0:00:03][%mdl 4096] Endgame. KRR-KRN} 39. Rc7 {[%emt 0:00:06]} Ra8 {[%emt 0:02:06]} 40. Rxc4 {[%emt 0:00:33]} Re7 $2 {[%emt 0:00:03][%mdl 8192] A mistake that costs the game.} (40... Kf8 $1 $11 {and Black stays safe.}) 41. Ne5 $18 {[%emt 0:01:03]} Rea7 {[%emt 0:00:08]} 42. Rc6 {[%emt 0:00:12]} Rxa4 {[%emt 0:01:14]} 43. Rxb6 {[%emt 0:00:13]} Ra3 {[%emt 0:00:47]} 44. Nc4 {[%emt 0:01:19]} Ra2+ {[%emt 0:00:12]} 45. Kd3 {[%emt 0:00:18]} Rh2 {[%emt 0:00:10]} 46. Rb7 {[%emt 0:00:05]} Kf8 $2 {[%emt 0:01:08]} (46... Rd8 47. Ne5 Rxh4 48. Rxf7 Rh1) 47. b6 {[%emt 0:00:32] White is clearly winning.} Rxh4 {[%emt 0:00:29]} 48. Ra7 {[%emt 0:00:42]} Rb8 {[%emt 0:00:10]} 49. Ne5 {[%emt 0:00:08] Threatens to win with Nd7+.} Ke8 {[%emt 0:00:19]} 50. Nd7 {[%emt 0:00:34] Weighted Error Value: White=0.08 (flawless) /Black=0.27 (precise) .  Loses game:     	---       	Black=1      Mistake:       	White=1     	Black=2      Inaccurate:     	White=1     	Black=4      OK:         	White=25    	Black=14     Best:        	White=2     	---        Strong:       	---       	Black=2} ({Stronger than} 50. Rxf7 Rxb6 51. Ra7 Rh1 $11) 1-0

[Event "ESP-ch Teams Honor 2024"]
[Site "Melilla"]
[Date "2024.10.13"]
[Round "2.21"]
[White "Grigoryan, Karen H."]
[Black "Perez Candelario, Manuel"]
[Result "1-0"]
[ECO "B23"]
[WhiteElo "2582"]
[BlackElo "2588"]
[Annotator "TA"]
[PlyCount "99"]
[EventDate "2024.10.11"]
[EventType "team-tourn"]
[EventCountry "ESP"]
[SourceTitle "playchess.com"]
[Source "ChessBase"]
[SourceQuality "1"]
[WhiteTeam "Benalmadena"]
[BlackTeam "Extremadura"]
[TimeControl "5400+30"]

{[%evp 9,99,-6,-13,-10,-7,-15,-11,-12,-7,-16,-12,-17,0,-4,0,0,8,0,22,0,0,10,22,10,0,0,0,-51,106,102,88,124,96,30,27,-10,50,0,72,25,104,-132,21,31,47,45,25,0,0,-90,-89,-64,-66,-100,-19,0,370,360,338,68,97,52,134,134,140,109,113,73,295,290,328,320,320,312,287,227,269,269,220,150,149,131,166,163,300,300,300,259,29979,4627,29980,29981]} 1. e4 {[%emt 0:00:26]} c5 {[%emt 0:00:03]} 2. Nc3 {[%emt 0:00:22]} g6 {[%emt 0:01:17]} 3. h4 {[%emt 0:03:13]} h5 {[%emt 0:03:21]} 4. Bc4 {[%emt 0:02:17]} Nc6 {[%emt 0:03:02]} 5. d3 {[%emt 0:00:09]} Bg7 {[%emt 0:01:48]} 6. Bg5 {[%emt 0:00:15]} a6 {[%emt 0:06:48]} 7. a4 {[%emt 0:03:23][%cal Ba2a4,Ba4a5][%mdl 32]} Nf6 {[%emt 0:04:57]} 8. f3 {[%emt 0:02:38] The position is equal.} d6 {[%emt 0:01:33]} 9. Nge2 {[%emt 0:00:29]} Bd7 {[%emt 0:03:07]} 10. Qd2 {[%emt 0:00:40]} Rb8 {[%emt 0:03:32]} 11. Kf2 {[%emt 0:02:44]} Ne5 {[%emt 0:05:58]} 12. a5 {[%emt 0:01:38]} Bc6 {[%emt 0:06:54]} 13. Bb3 {[%emt 0:01:09]} O-O {[%emt 0:05:16]} 14. d4 {[%emt 0:03:58]} cxd4 {[%emt 0:01:39]} 15. Nxd4 {[%emt 0:00:06]} b5 {[%emt 0:07:30]} 16. axb6 {[%emt 0:01:35]} Qxb6 {[%emt 0:00:21][%cal Of6e4]} 17. Be3 {[%emt 0:08:56]} Bxe4 {[%emt 0:05:29]} 18. Kg3 {[%emt 0:18:05] [#]} (18. fxe4 $2 Neg4+ 19. Ke2 (19. Ke1 $2 Nxe3 20. Ra4 Bh6 $19) 19... Nxe3 20. Qxe3 Ng4 $17) (18. Nxe4 $2 Neg4+ 19. Ke2 Nxe4 20. fxe4 Nxe3 21. Qxe3 Bxd4 $19) (18. Ne6 $1 $11 Nfg4+ 19. fxg4 fxe6+ (19... Nxg4+ 20. Ke2 $11) 20. Kg1) 18... Qb7 $2 {[%emt 0:01:14]} 19. Nxe4 $16 {[%emt 0:03:28]} Nxe4+ {[%emt 0:00:13]} 20. fxe4 {[%emt 0:00:06]} Qxe4 {[%emt 0:02:50] aiming for ...Ng4.} 21. Rae1 {[%emt 0:04:39]} (21. Nf3 $16) 21... Qg4+ $1 $11 {[%emt 0:11:00]} 22. Kf2 {[%emt 0:01:16]} (22. Kh2 $5) 22... Rfc8 {[%emt 0:00:23]} (22... a5 $1 $11) 23. Rh3 {[%emt 0:04:06]} (23. Re2 $14) 23... Bf6 {[%emt 0:05:16]} (23... a5 $1 $11 {keeps the balance.} 24. Ra1 (24. Qxa5 Nc4 $15) 24... Qe4 (24... Nc4 25. Bxc4 Rxc4 26. c3 $14)) 24. Nf3 {[%emt 0:06:12]} (24. Kg1 $16) 24... a5 {[%emt 0:06:41]} 25. Qd5 $2 {[%emt 0:08:43]} (25. Qxa5 Rxb3 26. cxb3 Rc2+ 27. Bd2 Nd3+ (27... Rxb2 28. Nxe5 Qd4+ 29. Ke2 $16) 28. Kf1 Nxe1 (28... Rxb2 29. Re3 $14) 29. Nxe1 Rxb2 $14) (25. Nxe5 $1 $16 {and life is bright.} Bxe5 26. Ra1 (26. Qxa5 Rxb3 27. cxb3 Rc2+ 28. Bd2 Qd4+ 29. Ke2 Bf4 $11)) 25... e6 $2 {[%emt 0:03:20]} (25... a4 $1 $17 {[%cal Ra4b3]} 26. Nxe5 dxe5 27. Qxf7+ Kh8 28. Bxa4 (28. Rg3 $2 Bxh4 29. Kg1 Qxg3 $19) 28... Rf8) 26. Qxd6 {[%emt 0:00:23]} Nc4 {[%emt 0:05:50]} 27. Bxc4 {[%emt 0:02:23]} Qxc4 {[%emt 0:00:04]} 28. Re2 {[%emt 0:00:56] Threatens to win with b3.} Rxb2 {[%emt 0:00:22]} 29. Ng5 {[%emt 0:06:48]} (29. Ne5 $11 {remains equal.} Qc7 30. Qxc7 Rxc7 31. Bd4 Rbxc2 32. Rxc2 Rxc2+ 33. Kf1) 29... Rxc2 {[%emt 0:02:32]} 30. Rxc2 {[%emt 0:00:05]} Qxc2+ {[%emt 0:00:03]} 31. Kg1 {[%emt 0:00:07]} Qb1+ {[%emt 0:01:12]} ({Black should try} 31... Rd8 $1 $17 {[%cal Rd8d6]} 32. Qf4 Rd1+ 33. Kh2 Qf5 34. Qxf5 gxf5) 32. Kh2 {[%emt 0:00:05]} Qb2 $2 {[%emt 0:01:00][%mdl 8192] [#]} (32... Qb4 $11 {and Black is okay.} 33. Qxb4 axb4) 33. Nxf7 $1 $18 {[%emt 0:01:07][%mdl 512]} Qb8 {[%emt 0:00:52] [#] Strongly threatening ...Qxd6+.} 34. Bf4 {[%emt 0:00:59]} (34. Rg3 $1 $18 Rf8 (34... Kxf7 $2 {loses.} 35. Qd7+ Be7 36. Kh3 $18) 35. Nh6+ (35. Rxg6+ $2 Kxf7 36. Qxb8 Rxb8 $19) 35... Kh8 36. Qxe6) 34... Qxd6 $14 {[%emt 0:00:03]} 35. Nxd6 {[%emt 0:00:06]} Rc6 {[%emt 0:01:06]} ({Black should play} 35... Rc3 $1 $14) 36. Ne4 $16 {[%emt 0:01:15]} Be7 {[%emt 0:00:14]} 37. Bg5 {[%emt 0:00:23]} Bxg5 {[%emt 0:01:11]} 38. Nxg5 {[%emt 0:00:13][%mdl 4096] Endgame. Hoping for Ra3. KRN-KR} Ra6 $2 {[%emt 0:00:46] A mistake that costs the game.} (38... Rc4 $16 39. Re3 (39. Nxe6 Kf7 $16) 39... Rxh4+ 40. Kg1 Rd4 41. Rxe6 Kg7) 39. Ra3 $18 {[%emt 0:00:10]} Kf8 {[%emt 0:00:15]} 40. Ne4 {[%emt 0:00:28]} Ke7 {[%emt 0:00:10]} 41. Nc5 {[%emt 0:00:05]} Ra8 {[%emt 0:01:05]} 42. Kg3 {[%emt 0:00:06]} Kf6 {[%emt 0:00:33]} 43. Kf4 {[%emt 0:00:12]} e5+ {[%emt 0:00:26]} 44. Ke3 {[%emt 0:01:55]} Kf5 {[%emt 0:00:19]} 45. Ne4 {[%emt 0:00:28]} Kg4 {[%emt 0:00:39]} 46. g3 {[%emt 0:00:08]} a4 {[%emt 0:00:22]} (46... g5 $142) 47. Kf2 {[%emt 0:00:12] Rf3 would kill now.} Kf5 {[%emt 0:00:49]} 48. Ng5 {[%emt 0:00:27] White threatens Rf3+ and mate.} Ra6 $2 {[%emt 0:00:29]} (48... e4 $18 49. Ke2 (49. Ke3 Rb8 $18) 49... Ra5) 49. Rf3+ {[%emt 0:00:44]} Kg4 {[%emt 0:00:03]} 50. Kg2 {[%emt 0:00:05] Weighted Error Value: White=0.36/Black=0.61.  Loses game:     	---       	Black=2      Missed win:     	White=1     	---        Mistake:       	White=6     	Black=9      Inaccurate:     	White=4     	Black=1      OK:         	White=14    	Black=14     Best:        	White=4     	Black=2      Strong:       	---       	Black=1      Brilliant:      	White=1     	---} 1-0

[Event "ESP-ch Teams Honor 2024"]
[Site "Melilla"]
[Date "2024.10.13"]
[Round "2.22"]
[White "Oro, Faustino"]
[Black "Ladron De Guevara Pinto, Paolo"]
[Result "1/2-1/2"]
[ECO "D35"]
[WhiteElo "2434"]
[BlackElo "2388"]
[Annotator "TA"]
[PlyCount "100"]
[EventDate "2024.10.11"]
[EventType "team-tourn"]
[EventCountry "ESP"]
[SourceTitle "playchess.com"]
[Source "ChessBase"]
[SourceQuality "1"]
[WhiteTeam "Extremadura"]
[BlackTeam "Benalmadena"]
[TimeControl "5400+30"]

{[%evp 12,100,69,50,83,50,71,53,76,47,104,84,148,72,138,-84,-81,-101,-120,-175,-149,-166,-148,-168,-180,-208,-221,-213,-204,-203,-152,-179,-176,-217,-137,-142,-93,-85,-26,-46,-63,-95,-69,-81,-100,-100,-84,-129,-116,-149,-162,-203,-212,-219,-155,-129,-124,-243,-246,-240,-244,-218,-197,-186,-183,-261,-194,-230,-162,-160,-139,-143,-84,-132,-105,-164,-165,-167,-153,-171,-158,-144,-100,-135,-122,-171,-83,-123,-115,-119,-131]} 1. d4 {[%emt 0:00:03]} d5 {[%emt 0:00:26]} 2. c4 {[%emt 0:00:02]} e6 {[%emt 0:00:09]} 3. Nc3 {[%emt 0:00:05]} Nf6 {[%emt 0:00:27]} 4. cxd5 {[%emt 0:00:04]} exd5 {[%emt 0:01:10]} 5. Bg5 {[%emt 0:00:05]} Bb4 {[%emt 0:01:14]} 6. e3 {[%emt 0:00:56]} h6 {[%emt 0:00:11][%cal Bh7h6,Bh6h5][%mdl 32] EV=13.88. Goes to h5 (dbg))} 7. Bh4 {[%emt 0:00:08]} g5 {[%emt 0:00:17] D35: Damegambiet Geweigerd: Ruilvariant.} 8. Bg3 {[%emt 0:00:04] OK} Ne4 {[%emt 0:00:28]} 9. Nge2 {[%emt 0:03:15] OK} h5 $1 {[%emt 0:01:37] Sterk. Wit staat iets beter.} 10. h4 {[%emt 0:00:48] Onnauwkeurig} Bg4 {[%emt 0:01:53] Fout (0.6)} (10... Nxg3 $14 11. Nxg3 Bg4) 11. Qb3 $16 {[%emt 0:05:26] Beste (Gemakkelijk)} Nc6 {[%emt 0:05:53] Fout (0.6)} (11... Nxg3 12. Nxg3 Nc6) 12. Bh2 $1 {[%emt 0:29:19] Sterk} Qf6 {[%emt 0:01:19] OK} 13. Bg1 $2 {[%emt 0:01:45] is geforceerd om beter te blijven staan. Fout (2.2)} (13. Qxd5 $2 Bxc3+ (13... Nxf2 14. hxg5 Nd3+ 15. Kd2 $16) (13... Qxf2+ $2 14. Kd1 $19) 14. Kd1 Nxf2+ (14... Bxb2 15. Qxe4+ Kf8 16. Rb1 $14) 15. Kc1 Nxh1 $19) (13. f3 $16 Bxf3 14. O-O-O (14. gxf3 Qxf3 15. O-O-O Qxh1 $17) 14... Bxc3 15. hxg5) 13... Bxe2 $1 $17 {[%emt 0:29:12] Sterk} ({Zwakker is} 13... gxh4 14. f3 $16) 14. Bxe2 {[%emt 0:00:28]} O-O-O {[%emt 0:10:36][%cal Rg5h4] OK} 15. O-O-O $146 {[%emt 0:06:12] is een betere verdediging. Fout (0.6)} (15. Bd3 $17) ({Predecessor:} 15. a3 Ba5 16. Bf3 Nxd4 17. exd4 Qxd4 18. Rd1 Qc5 19. Bxe4 dxe4 20. Rh3 g4 21. Re3 Rxd1+ 22. Qxd1 {1-0 Bru Rullo,L (2278)-Torres Rebolledo,V (2124) Roquetas de Mar op 35th 2024 (5)}) 15... Bxc3 $19 {[%emt 0:01:45] Beste (Gemakkelijk)} (15... gxh4 $2 16. Nxe4 (16. Nxd5 Qg5 $16) 16... dxe4 17. d5 $18) (15... Nxf2 $2 {te hebberig.} 16. Rf1 $18 (16. Nxd5 $2 {slaat de verkeerde figuur.} Rxd5 17. Qxd5 Nxh1 $17)) 16. bxc3 {[%emt 0:02:39]} g4 $36 {[%emt 0:03:51][%cal Re4f2][%mdl 2048] Zwart heeft controle. OK} (16... Nxf2 $2 17. hxg5 Qf5 18. Rf1 $18 (18. Bxf2 Qxf2 19. Qc2 Qg3 $15)) 17. Qc2 {[%emt 0:06:39]} Qe7 {[%emt 0:02:02] ...Rd6 zou dodelijk zijn. OK} (17... Nxf2 $2 18. Bxf2 Kb8 19. Bg3 $18) 18. Kb2 {[%emt 0:04:39] [#]} Rh6 $1 {[%emt 0:00:08] Sterk} 19. Ka1 {[%emt 0:03:03]} Na5 {[%emt 0:11:23] ...Rc6 is de sterke dreiging.} 20. Bd3 {[%emt 0:18:00] OK} Rb6 {[%emt 0:08:30] Hoopt vervolgens op ...Qa3.} 21. Rb1 {[%emt 0:03:51]} Rxb1+ {[%emt 0:04:38]} 22. Qxb1 {[%emt 0:00:33]} Nxc3 {[%emt 0:10:49] Onnauwkeurig} 23. Qc2 {[%emt 0:01:28] OK} {Zwart zou moeten spelen} Ne4 {[%emt 0:01:22] Fantastisch paardenconcours. Fout (0.5)} (23... Qa3 {Dreigt te winnen met ...Rd6.} 24. Qb2 Qxb2+ 25. Kxb2 Ne4 26. Bxe4 dxe4) 24. Bh2 $17 {[%emt 0:02:04] Stopt Rd6. OK} Nc6 {[%emt 0:01:18] Fout (0.6)} (24... Qxh4 25. Qxc7#) (24... b6 $17) 25. Rb1 $1 $11 {[%emt 0:00:59] Sterk} g3 $1 {[%emt 0:00:53] Sterk} 26. Bxe4 {[%emt 0:00:12] Onnauwkeurig} Qxe4 {[%emt 0:01:13]} 27. Qxe4 {[%emt 0:00:07]} dxe4 {[%emt 0:00:03]} 28. Bxg3 $15 {[%emt 0:00:05][%mdl 4096] Eindspel. KRB-KRN. OK} Ne7 {[%emt 0:00:28] Beste (Gemakkelijk)} 29. Bf4 {[%emt 0:02:45] Onnauwkeurig} Nd5 {[%emt 0:00:04] OK} 30. Be5 {[%emt 0:05:42] Afleidend Nxf4} f6 {[%emt 0:00:15] OK} 31. Bh2 {[%emt 0:00:47]} Rg8 {[%emt 0:00:13] OK} 32. Rg1 {[%emt 0:00:42]} c6 {[%emt 0:01:06]} 33. Kb2 {[%emt 0:01:06] OK} Rg4 {[%emt 0:00:21]} 34. g3 {[%emt 0:00:44] was geforceerd. Fout (1.2)} (34. f3 $17 Rg7 (34... Rxh4 $2 {verliest.} 35. Bg3 $18) 35. fxe4 Nxe3 36. g4 Nxg4 (36... Rxg4 37. Rxg4 Nxg4 38. Bg1 $17) 37. Bg3) 34... Kd7 $19 {[%emt 0:00:31] OK} 35. Kc2 {[%emt 0:00:18] OK} Ke6 {[%emt 0:00:08] OK} 36. Kd2 {[%emt 0:00:09] OK} f5 {[%emt 0:00:21]} 37. Ke2 {[%emt 0:00:21]} Rg7 {[%emt 0:01:40] OK} (37... Nc3+ 38. Kd2 Na4 (38... Nxa2 39. Rb1 $11) 39. Kc2 $11) 38. Rc1 {[%emt 0:00:36] Fout (0.8)} (38. a3) 38... Kd7 {[%emt 0:00:34]} 39. f3 {[%emt 0:00:32]} exf3+ {[%emt 0:00:35]} 40. Kxf3 {[%emt 0:00:01]} Re7 {[%emt 0:00:26][%cal Re7e3]} 41. Bg1 {[%emt 0:00:15] [#] OK} {Zwart zou moeten proberen} b6 {[%emt 0:00:31] Fout (0.6)} (41... b5 $1 42. Ke2 Kc7) {Wit zou moeten spelen} 42. Bf2 {[%emt 0:00:30] Fout (0.5)} (42. a4) 42... a5 {[%emt 0:00:11]} 43. Rc2 {[%emt 0:01:08] pakt misschien beter uit. Fout (0.6)} (43. a4 $17) 43... b5 {[%emt 0:00:55]} 44. Ke2 {[%emt 0:01:23] OK} Kd6 {[%emt 0:00:26]} 45. Kd2 {[%emt 0:00:26] OK} Nf6 {[%emt 0:00:37]} 46. Kd3 {[%emt 0:00:34] OK} Ne4 {[%emt 0:00:16] Onnauwkeurig} 47. Be1 {[%emt 0:00:12] Beste} Ra7 {[%emt 0:00:18] OK} 48. Ke2 {[%emt 0:01:26] was hoogst noodzakelijk. Fout (0.5)} (48. Rc1 $17) 48... Nf6 {[%emt 0:00:39] overheersend voordeel. Fout (0.9)} (48... b4 $19 {met als doel voor ...Rc7.} 49. Kf3 Rg7) 49. Kd3 {[%emt 0:00:38][%cal Og3g4] Onnauwkeurig} Ne4 {[%emt 0:00:47] OK} 50. Ke2 {[%emt 0:00:14] OK} Kd5 {Blunder waarde: Wit=0.24 (precies) /Zwart=0.21 (precies) . OK.  Fout:        	Wit=7      	Zwart=6      Onnauwkeurig:    	Wit=4      	Zwart=2      OK:         	Wit=14     	Zwart=13     Beste:        	Wit=2      	Zwart=2      Sterk:        	Wit=2      	Zwart=4} 1/2-1/2